[Event "Titled Tuesday Blitz April 11 Early 2023"]
[White "Poliakova, Varvara"]
[Black "Kukhmazov, Arsen"]
[WhiteFideId "13518313"]
[BlackFideId "24108260"]
[WhiteElo "2075"]
[BlackElo "2396"]
[Result "0-1"]
[Round "07"]
[TimeControl "180+2"]
[Date "2023.04.11"]
[WhiteClock "0:00:21"]
[BlackClock "0:00:34"]

1. e4 {[%clk 0:03:00]}  e5 {[%clk 0:02:59]} 2. Nf3 {[%clk 0:03:00]}  Nc6 {[%clk 0:02:59]} 3. Bc4 {[%clk 0:02:56]}  Bc5 {[%clk 0:02:58]} 4. c3 {[%clk 0:02:55]}  Nf6 {[%clk 0:02:59]} 5. d4 {[%clk 0:02:54]}  exd4 {[%clk 0:03:00]} 6. e5 {[%clk 0:02:50]}  d5 {[%clk 0:03:00]} 7. exf6 {[%clk 0:02:48]}  dxc4 {[%clk 0:02:59]} 8. fxg7 {[%clk 0:02:48]}  Rg8 {[%clk 0:02:56]} 9. O-O {[%clk 0:02:45]}  Be6 {[%clk 0:02:52]} 10. cxd4 {[%clk 0:02:39]}  Nxd4 {[%clk 0:02:53]} 11. Be3 {[%clk 0:02:37]}  Nxf3+ {[%clk 0:02:50]} 12. Qxf3 {[%clk 0:02:38]}  Bxe3 {[%clk 0:02:50]} 13. fxe3 {[%clk 0:02:35]}  Qd5 {[%clk 0:02:48]} 14. Qf6 {[%clk 0:02:28]}  Qd8 {[%clk 0:02:42]} 15. Qe5 {[%clk 0:02:25]}  Qd6 {[%clk 0:02:42]} 16. Qf6 {[%clk 0:02:23]}  Bd5 {[%clk 0:02:26]} 17. Nc3 {[%clk 0:02:15]}  Qxf6 {[%clk 0:02:24]} 18. Rxf6 {[%clk 0:02:16]}  Be6 {[%clk 0:02:25]} 19. Nb5 {[%clk 0:02:13]}  O-O-O {[%clk 0:02:21]} 20. Nxa7+ {[%clk 0:02:08]}  Kb8 {[%clk 0:02:22]} 21. Nb5 {[%clk 0:02:09]}  Rd2 {[%clk 0:02:17]} 22. Nd4 {[%clk 0:02:05]}  Rxg7 {[%clk 0:02:17]} 23. Rf2 {[%clk 0:02:02]}  Rxf2 {[%clk 0:02:17]} 24. Kxf2 {[%clk 0:02:02]}  Bd5 {[%clk 0:02:18]} 25. g3 {[%clk 0:02:02]}  c5 {[%clk 0:02:14]} 26. Nf5 {[%clk 0:01:58]}  Rg5 {[%clk 0:02:14]} 27. Nh4 {[%clk 0:01:39]}  b5 {[%clk 0:02:11]} 28. Rd1 {[%clk 0:01:39]}  b4 {[%clk 0:02:11]} 29. Ke2 {[%clk 0:01:32]}  Be4 {[%clk 0:01:58]} 30. Rd8+ {[%clk 0:01:29]}  Kc7 {[%clk 0:01:57]} 31. Rf8 {[%clk 0:01:27]}  Bd5 {[%clk 0:01:52]} 32. Rh8 {[%clk 0:01:22]}  Rh5 {[%clk 0:01:46]} 33. Re8 {[%clk 0:01:18]}  Kd7 {[%clk 0:01:45]} 34. Rf8 {[%clk 0:01:16]}  Ke7 {[%clk 0:01:40]} 35. Rb8 {[%clk 0:01:14]}  Be4 {[%clk 0:01:39]} 36. Kd2 {[%clk 0:01:10]}  Rd5+ {[%clk 0:01:39]} 37. Kc1 {[%clk 0:01:09]}  c3 {[%clk 0:01:36]} 38. bxc3 {[%clk 0:01:09]}  bxc3 {[%clk 0:01:37]} 39. Rb7+ {[%clk 0:01:07]}  Kf8 {[%clk 0:01:37]} 40. Rb8+ {[%clk 0:01:01]}  Kg7 {[%clk 0:01:37]} 41. Re8 {[%clk 0:00:56]}  Bd3 {[%clk 0:01:17]} 42. e4 {[%clk 0:00:54]}  Rd7 {[%clk 0:01:10]} 43. Nf5+ {[%clk 0:00:54]}  Kf6 {[%clk 0:01:11]} 44. Ne3 {[%clk 0:00:51]}  Rb7 {[%clk 0:01:09]} 45. Nd5+ {[%clk 0:00:49]}  Kg7 {[%clk 0:01:09]} 46. Nxc3 {[%clk 0:00:50]}  Ra7 {[%clk 0:00:58]} 47. Kd2 {[%clk 0:00:48]}  c4 {[%clk 0:00:57]} 48. Rb8 {[%clk 0:00:44]}  h5 {[%clk 0:00:57]} 49. h4 {[%clk 0:00:44]}  Kf6 {[%clk 0:00:56]} 50. Ke3 {[%clk 0:00:44]}  Kg6 {[%clk 0:00:44]} 51. Kf4 {[%clk 0:00:43]}  Ra3 {[%clk 0:00:43]} 52. Rb6+ {[%clk 0:00:43]}  Kg7 {[%clk 0:00:43]} 53. Nd5 {[%clk 0:00:39]}  Rxa2 {[%clk 0:00:40]} 54. e5 {[%clk 0:00:39]}  Rf2+ {[%clk 0:00:39]} 55. Ke3 {[%clk 0:00:39]}  Re2+ {[%clk 0:00:39]} 56. Kd4 {[%clk 0:00:33]}  Re4+ {[%clk 0:00:40]} 57. Kc3 {[%clk 0:00:31]}  Rxe5 {[%clk 0:00:40]} 58. Rd6 {[%clk 0:00:31]}  Bf1 {[%clk 0:00:33]} 59. Kd4 {[%clk 0:00:27]}  Re1 {[%clk 0:00:32]} 60. Nf4 {[%clk 0:00:28]}  Rd1+ {[%clk 0:00:32]} 61. Kc5 {[%clk 0:00:24]}  Rxd6 {[%clk 0:00:33]} 62. Kxd6 {[%clk 0:00:25]}  c3 {[%clk 0:00:33]} 63. Nxh5+ {[%clk 0:00:23]}  Kh6 {[%clk 0:00:33]} 64. Nf6 {[%clk 0:00:21]}  c2 {[%clk 0:00:34]} 65. Ng4+ {[%clk 0:00:21]}  Kg7 {[%clk 0:00:34]} 0-1


[Site "https://www.chess.com"]

[Event "Titled Tuesday Blitz April 11 Early 2023"]
[White "Arabidze, Meri"]
[Black "Siva Mahadevan"]
[WhiteFideId "13604040"]
[BlackFideId "25043153"]
[WhiteElo "2405"]
[BlackElo "2249"]
[Result "0-1"]
[Round "07"]
[TimeControl "180+2"]
[Date "2023.04.11"]
[WhiteClock "0:00:04"]
[BlackClock "0:00:27"]

1. d4 {[%clk 0:02:55]}  Nf6 {[%clk 0:02:58]} 2. Nf3 {[%clk 0:02:56]}  g6 {[%clk 0:02:58]} 3. g3 {[%clk 0:02:57]}  Bg7 {[%clk 0:02:58]} 4. Bg2 {[%clk 0:02:57]}  O-O {[%clk 0:02:59]} 5. O-O {[%clk 0:02:58]}  d6 {[%clk 0:03:00]} 6. a4 {[%clk 0:02:58]}  a5 {[%clk 0:02:55]} 7. Nc3 {[%clk 0:02:58]}  Nc6 {[%clk 0:02:51]} 8. e4 {[%clk 0:02:58]}  Bg4 {[%clk 0:02:52]} 9. Be3 {[%clk 0:02:55]}  Nd7 {[%clk 0:02:51]} 10. h3 {[%clk 0:02:51]}  Bxf3 {[%clk 0:02:50]} 11. Bxf3 {[%clk 0:02:52]}  e5 {[%clk 0:02:51]} 12. d5 {[%clk 0:02:50]}  Nd4 {[%clk 0:02:32]} 13. Bg2 {[%clk 0:02:48]}  f5 {[%clk 0:02:32]} 14. Bxd4 {[%clk 0:02:37]}  exd4 {[%clk 0:02:32]} 15. Nb5 {[%clk 0:02:38]}  f4 {[%clk 0:02:21]} 16. Nxd4 {[%clk 0:02:32]}  Bxd4 {[%clk 0:02:20]} 17. Qxd4 {[%clk 0:02:31]}  Ne5 {[%clk 0:02:06]} 18. Ra3 {[%clk 0:02:22]}  Qd7 {[%clk 0:01:50]} 19. Kh2 {[%clk 0:02:10]}  Rf6 {[%clk 0:01:36]} 20. Rb3 {[%clk 0:01:37]}  b6 {[%clk 0:01:33]} 21. gxf4 {[%clk 0:01:31]}  Rxf4 {[%clk 0:01:33]} 22. Rg3 {[%clk 0:01:28]}  Raf8 {[%clk 0:01:32]} 23. b3 {[%clk 0:01:26]}  Qe7 {[%clk 0:01:29]} 24. Kg1 {[%clk 0:00:58]}  Qh4 {[%clk 0:01:28]} 25. Qc3 {[%clk 0:00:58]}  R8f7 {[%clk 0:01:25]} 26. Qe3 {[%clk 0:00:58]}  Kg7 {[%clk 0:01:18]} 27. c3 {[%clk 0:00:58]}  Qf6 {[%clk 0:01:17]} 28. b4 {[%clk 0:00:56]}  h5 {[%clk 0:01:12]} 29. Qe2 {[%clk 0:00:37]}  h4 {[%clk 0:01:01]} 30. Re3 {[%clk 0:00:35]}  Qg5 {[%clk 0:01:02]} 31. Kh1 {[%clk 0:00:33]}  R4f6 {[%clk 0:00:54]} 32. bxa5 {[%clk 0:00:30]}  bxa5 {[%clk 0:00:55]} 33. c4 {[%clk 0:00:31]}  Nxc4 {[%clk 0:00:39]} 34. Rc3 {[%clk 0:00:04]}  Nd2 {[%clk 0:00:32]} 35. f4 {[%clk 0:00:02]}  Rxf4 {[%clk 0:00:32]} 36. Rxf4 {[%clk 0:00:02]}  Qxf4 {[%clk 0:00:32]} 37. Re3 {[%clk 0:00:01]}  Nc4 {[%clk 0:00:31]} 38. Rf3 {[%clk 0:00:01]}  Qc1+ {[%clk 0:00:31]} 39. Kh2 {[%clk 0:00:02]}  Rxf3 {[%clk 0:00:29]} 40. Qxf3 {[%clk 0:00:02]}  Ne5 {[%clk 0:00:29]} 41. Qe2 {[%clk 0:00:02]}  Qf4+ {[%clk 0:00:28]} 42. Kh1 {[%clk 0:00:02]}  Qc1+ {[%clk 0:00:28]} 43. Kh2 {[%clk 0:00:03]}  Qc4 {[%clk 0:00:29]} 44. Qd1 {[%clk 0:00:02]}  Qa2 {[%clk 0:00:27]} 45. Qf1 {[%clk 0:00:01]}  Qxa4 {[%clk 0:00:25]} 46. Qf4 {[%clk 0:00:02]}  Qc2 {[%clk 0:00:24]} 47. Kh1 {[%clk 0:00:02]}  Qd1+ {[%clk 0:00:23]} 48. Kh2 {[%clk 0:00:02]}  Qe2 {[%clk 0:00:24]} 49. Kh1 {[%clk 0:00:02]}  Qe1+ {[%clk 0:00:24]} 50. Kh2 {[%clk 0:00:02]}  Qg3+ {[%clk 0:00:25]} 51. Qxg3 {[%clk 0:00:03]}  hxg3+ {[%clk 0:00:26]} 52. Kxg3 {[%clk 0:00:04]}  a4 {[%clk 0:00:27]} 0-1


[Site "https://www.chess.com"]

[Event "Titled Tuesday Blitz April 11 Early 2023"]
[White "Hambleton, Aman"]
[Black "Skliarov, Viktor"]
[WhiteFideId "2606577"]
[BlackFideId "14106736"]
[WhiteElo "2511"]
[BlackElo "2317"]
[Result "0-1"]
[Round "07"]
[TimeControl "180+2"]
[Date "2023.04.11"]
[WhiteClock "0:00:04"]
[BlackClock "0:00:04"]

1. d4 {[%clk 0:02:56]}  Nf6 {[%clk 0:02:58]} 2. Bf4 {[%clk 0:02:44]}  g6 {[%clk 0:02:58]} 3. Nc3 {[%clk 0:02:43]}  Bg7 {[%clk 0:02:54]} 4. e4 {[%clk 0:02:39]}  d6 {[%clk 0:02:51]} 5. Qd2 {[%clk 0:02:38]}  a6 {[%clk 0:02:47]} 6. O-O-O {[%clk 0:02:26]}  b5 {[%clk 0:02:47]} 7. e5 {[%clk 0:02:22]}  b4 {[%clk 0:02:01]} 8. exf6 {[%clk 0:01:46]}  bxc3 {[%clk 0:02:01]} 9. Qxc3 {[%clk 0:01:31]}  Bxf6 {[%clk 0:01:55]} 10. Qe3 {[%clk 0:00:50]}  Bb7 {[%clk 0:01:37]} 11. h4 {[%clk 0:00:40]}  Nd7 {[%clk 0:01:15]} 12. h5 {[%clk 0:00:27]}  c5 {[%clk 0:01:11]} 13. hxg6 {[%clk 0:00:17]}  hxg6 {[%clk 0:01:09]} 14. Rxh8+ {[%clk 0:00:17]}  Bxh8 {[%clk 0:01:09]} 15. dxc5 {[%clk 0:00:13]}  Qa5 {[%clk 0:00:47]} 16. cxd6 {[%clk 0:00:13]}  e5 {[%clk 0:00:20]} 17. Nf3 {[%clk 0:00:03]}  O-O-O {[%clk 0:00:16]} 18. Bg5 {[%clk 0:00:01]}  f6 {[%clk 0:00:16]} 19. Bh4 {[%clk 0:00:01]}  g5 {[%clk 0:00:10]} 20. Bg3 {[%clk 0:00:02]}  Kb8 {[%clk 0:00:07]} 21. Bc4 {[%clk 0:00:02]}  Rc8 {[%clk 0:00:06]} 22. Bb3 {[%clk 0:00:02]}  Bg7 {[%clk 0:00:04]} 23. Nd2 {[%clk 0:00:02]}  Bxg2 {[%clk 0:00:03]} 24. f3 {[%clk 0:00:02]}  Bh3 {[%clk 0:00:03]} 25. Nc4 {[%clk 0:00:01]}  Qb5 {[%clk 0:00:03]} 26. Qd3 {[%clk 0:00:02]}  Be6 {[%clk 0:00:03]} 27. Qg6 {[%clk 0:00:02]}  Bxc4 {[%clk 0:00:03]} 28. Qxg7 {[%clk 0:00:02]}  Bxb3 {[%clk 0:00:03]} 29. axb3 {[%clk 0:00:03]}  Qxb3 {[%clk 0:00:03]} 30. Rd2 {[%clk 0:00:04]}  Qb5 {[%clk 0:00:02]} 31. Qe7 {[%clk 0:00:03]}  Rc5 {[%clk 0:00:02]} 32. Bf2 {[%clk 0:00:03]}  Rc8 {[%clk 0:00:02]} 33. b3 {[%clk 0:00:03]}  a5 {[%clk 0:00:02]} 34. Kb2 {[%clk 0:00:04]}  a4 {[%clk 0:00:03]} 35. Rd3 {[%clk 0:00:05]}  a3+ {[%clk 0:00:02]} 36. Kxa3 {[%clk 0:00:05]}  Rxc2 {[%clk 0:00:03]} 37. Re3 {[%clk 0:00:03]}  Qa6+ {[%clk 0:00:03]} 38. Kb4 {[%clk 0:00:04]}  Qb7+ {[%clk 0:00:04]} 39. Ka4 {[%clk 0:00:04]}  Qa6+ {[%clk 0:00:04]} 40. Kb4 {[%clk 0:00:04]}  Qb6+ {[%clk 0:00:04]} 41. Ka4 {[%clk 0:00:04]}  Ra2# {[%clk 0:00:04]} 0-1


[Site "https://www.chess.com"]

[Event "Titled Tuesday Blitz April 11 Early 2023"]
[White "Kaidanov, Gregory"]
[Black "Amilal Munkhdalai"]
[WhiteFideId "2008564"]
[BlackFideId "4903250"]
[WhiteElo "2547"]
[BlackElo "2293"]
[Result "1-0"]
[Round "07"]
[TimeControl "180+2"]
[Date "2023.04.11"]
[WhiteClock "0:01:31"]
[BlackClock "0:00:04"]

1. Nf3 {[%clk 0:03:00]}  Nf6 {[%clk 0:00:03]} 2. g3 {[%clk 0:03:00]}  e6 {[%clk 0:00:03]} 3. c4 {[%clk 0:02:59]}  d5 {[%clk 0:00:04]} 4. Bg2 {[%clk 0:02:59]}  c6 {[%clk 0:00:04]} 5. O-O {[%clk 0:02:59]}  Be7 {[%clk 0:00:05]} 6. b3 {[%clk 0:02:59]}  O-O {[%clk 0:00:06]} 7. Bb2 {[%clk 0:03:00]}  b6 {[%clk 0:00:06]} 8. d4 {[%clk 0:03:00]}  Bb7 {[%clk 0:00:07]} 9. Nbd2 {[%clk 0:03:00]}  Nbd7 {[%clk 0:00:07]} 10. Qc2 {[%clk 0:03:00]}  Rc8 {[%clk 0:00:08]} 11. e4 {[%clk 0:03:00]}  dxe4 {[%clk 0:00:08]} 12. Nxe4 {[%clk 0:03:00]}  Nxe4 {[%clk 0:00:08]} 13. Qxe4 {[%clk 0:02:59]}  Rc7 {[%clk 0:00:09]} 14. Rad1 {[%clk 0:02:56]}  c5 {[%clk 0:00:09]} 15. Qe2 {[%clk 0:02:53]}  Bf6 {[%clk 0:00:09]} 16. dxc5 {[%clk 0:02:50]}  bxc5 {[%clk 0:00:07]} 17. Ne5 {[%clk 0:02:45]}  Bxg2 {[%clk 0:00:07]} 18. Kxg2 {[%clk 0:02:45]}  Qa8+ {[%clk 0:00:08]} 19. f3 {[%clk 0:02:40]}  Nxe5 {[%clk 0:00:03]} 20. Bxe5 {[%clk 0:02:41]}  Bxe5 {[%clk 0:00:03]} 21. Qxe5 {[%clk 0:02:41]}  Qb7 {[%clk 0:00:03]} 22. Rd2 {[%clk 0:02:40]}  a5 {[%clk 0:00:04]} 23. Qc3 {[%clk 0:02:34]}  h6 {[%clk 0:00:04]} 24. Qxa5 {[%clk 0:02:32]}  Rd7 {[%clk 0:00:04]} 25. Rxd7 {[%clk 0:02:27]}  Qxd7 {[%clk 0:00:05]} 26. Qxc5 {[%clk 0:02:27]}  Qd3 {[%clk 0:00:04]} 27. Qf2 {[%clk 0:02:21]}  Rd8 {[%clk 0:00:05]} 28. Re1 {[%clk 0:02:18]}  Qc3 {[%clk 0:00:05]} 29. Re2 {[%clk 0:02:18]}  Rd1 {[%clk 0:00:05]} 30. Rc2 {[%clk 0:02:16]}  Qa1 {[%clk 0:00:05]} 31. c5 {[%clk 0:02:15]}  Qe5 {[%clk 0:00:03]} 32. c6 {[%clk 0:02:14]}  Qc7 {[%clk 0:00:03]} 33. b4 {[%clk 0:02:11]}  g5 {[%clk 0:00:02]} 34. b5 {[%clk 0:02:09]}  Rb1 {[%clk 0:00:02]} 35. a4 {[%clk 0:02:08]}  g4 {[%clk 0:00:01]} 36. fxg4 {[%clk 0:02:06]}  Qe5 {[%clk 0:00:01]} 37. c7 {[%clk 0:01:59]}  Qe4+ {[%clk 0:00:02]} 38. Kh3 {[%clk 0:01:59]}  h5 {[%clk 0:00:02]} 39. c8=Q+ {[%clk 0:01:58]}  Kg7 {[%clk 0:00:03]} 40. Qxf7+ {[%clk 0:01:43]}  Kxf7 {[%clk 0:00:03]} 41. Rc7+ {[%clk 0:01:43]}  Kf6 {[%clk 0:00:04]} 42. Qh8+ {[%clk 0:01:42]}  Kg6 {[%clk 0:00:03]} 43. Qxh5+ {[%clk 0:01:32]}  Kf6 {[%clk 0:00:04]} 44. Rf7# {[%clk 0:01:31]} 1-0


[Site "https://www.chess.com"]

[Event "Titled Tuesday Blitz April 11 Early 2023"]
[White "Matinian, Nikita"]
[Black "Ambartsumova, Karina"]
[WhiteFideId "24129100"]
[BlackFideId "4166299"]
[WhiteElo "2422"]
[BlackElo "2240"]
[Result "0-1"]
[Round "07"]
[TimeControl "180+2"]
[Date "2023.04.11"]
[WhiteClock "0:00:01"]
[BlackClock "0:00:08"]

1. e4 {[%clk 0:03:00]}  e5 {[%clk 0:02:56]} 2. Nc3 {[%clk 0:02:59]}  Nf6 {[%clk 0:02:53]} 3. g3 {[%clk 0:03:00]}  d5 {[%clk 0:02:50]} 4. exd5 {[%clk 0:03:00]}  Nxd5 {[%clk 0:02:51]} 5. Bg2 {[%clk 0:02:59]}  Nxc3 {[%clk 0:02:51]} 6. bxc3 {[%clk 0:02:59]}  Be7 {[%clk 0:02:51]} 7. Nf3 {[%clk 0:02:59]}  Nc6 {[%clk 0:02:51]} 8. O-O {[%clk 0:02:59]}  O-O {[%clk 0:02:50]} 9. Re1 {[%clk 0:03:00]}  Bf6 {[%clk 0:02:44]} 10. Rb1 {[%clk 0:02:54]}  Re8 {[%clk 0:02:38]} 11. h4 {[%clk 0:02:48]}  Bg4 {[%clk 0:02:19]} 12. Re4 {[%clk 0:02:46]}  Bf5 {[%clk 0:01:59]} 13. Qe2 {[%clk 0:02:38]}  Bxe4 {[%clk 0:01:55]} 14. Qxe4 {[%clk 0:02:39]}  Rb8 {[%clk 0:01:52]} 15. d3 {[%clk 0:02:39]}  Qd6 {[%clk 0:01:42]} 16. Rb5 {[%clk 0:02:31]}  h6 {[%clk 0:01:32]} 17. Be3 {[%clk 0:02:21]}  a6 {[%clk 0:01:26]} 18. Rd5 {[%clk 0:02:20]}  Qe6 {[%clk 0:01:19]} 19. g4 {[%clk 0:02:16]}  Rbd8 {[%clk 0:00:54]} 20. Rc5 {[%clk 0:02:13]}  Be7 {[%clk 0:00:51]} 21. Rc4 {[%clk 0:02:11]}  Qd5 {[%clk 0:00:47]} 22. Qxd5 {[%clk 0:02:07]}  Rxd5 {[%clk 0:00:48]} 23. Ng5 {[%clk 0:02:06]}  Ra5 {[%clk 0:00:45]} 24. Bxc6 {[%clk 0:02:01]}  bxc6 {[%clk 0:00:46]} 25. Nf3 {[%clk 0:02:01]}  Rxa2 {[%clk 0:00:39]} 26. Nxe5 {[%clk 0:02:00]}  Bxh4 {[%clk 0:00:37]} 27. Nxc6 {[%clk 0:01:56]}  a5 {[%clk 0:00:33]} 28. Nd4 {[%clk 0:01:53]}  a4 {[%clk 0:00:31]} 29. Rxc7 {[%clk 0:01:53]}  Ra1+ {[%clk 0:00:25]} 30. Kg2 {[%clk 0:01:53]}  Ra8 {[%clk 0:00:24]} 31. c4 {[%clk 0:00:55]}  Bf6 {[%clk 0:00:23]} 32. c5 {[%clk 0:00:43]}  a3 {[%clk 0:00:22]} 33. Nb3 {[%clk 0:00:41]}  Ra2 {[%clk 0:00:20]} 34. d4 {[%clk 0:00:39]}  Rxc2 {[%clk 0:00:19]} 35. d5 {[%clk 0:00:40]}  a2 {[%clk 0:00:19]} 36. c6 {[%clk 0:00:37]}  Be5 {[%clk 0:00:15]} 37. Rb7 {[%clk 0:00:31]}  f6 {[%clk 0:00:14]} 38. Bb6 {[%clk 0:00:09]}  Rb2 {[%clk 0:00:13]} 39. c7 {[%clk 0:00:04]}  Rxb3 {[%clk 0:00:12]} 40. Ra7 {[%clk 0:00:01]}  Rc8 {[%clk 0:00:10]} 41. d6 {[%clk 0:00:01]}  Bxd6 {[%clk 0:00:08]} 0-1


[Site "https://www.chess.com"]

[Event "Titled Tuesday Blitz April 11 Early 2023"]
[White "Orlov, Georgi"]
[Black "Idani, Pouya"]
[WhiteFideId "2011271"]
[BlackFideId "12510130"]
[WhiteElo "2592"]
[BlackElo "2574"]
[Result "1-0"]
[Round "07"]
[TimeControl "180+2"]
[Date "2023.04.11"]
[WhiteClock "0:00:35"]
[BlackClock "0:00:02"]

1. d4 {[%clk 0:03:00]}  Nf6 {[%clk 0:02:59]} 2. Nf3 {[%clk 0:03:00]}  g6 {[%clk 0:02:58]} 3. c4 {[%clk 0:03:00]}  Bg7 {[%clk 0:02:59]} 4. Nc3 {[%clk 0:03:01]}  O-O {[%clk 0:02:59]} 5. e4 {[%clk 0:03:01]}  d6 {[%clk 0:03:00]} 6. Be2 {[%clk 0:03:01]}  e5 {[%clk 0:02:58]} 7. O-O {[%clk 0:03:02]}  Na6 {[%clk 0:02:59]} 8. Be3 {[%clk 0:02:59]}  Ng4 {[%clk 0:02:58]} 9. Bg5 {[%clk 0:02:58]}  f6 {[%clk 0:02:59]} 10. Bh4 {[%clk 0:02:58]}  Qe8 {[%clk 0:02:57]} 11. d5 {[%clk 0:02:50]}  Nh6 {[%clk 0:02:18]} 12. Nd2 {[%clk 0:02:46]}  Nf7 {[%clk 0:02:03]} 13. f3 {[%clk 0:02:46]}  c5 {[%clk 0:02:03]} 14. dxc6 {[%clk 0:02:44]}  bxc6 {[%clk 0:02:02]} 15. Nb3 {[%clk 0:02:43]}  Be6 {[%clk 0:01:53]} 16. Bf2 {[%clk 0:02:38]}  Nc7 {[%clk 0:01:52]} 17. Qd2 {[%clk 0:02:33]}  f5 {[%clk 0:01:46]} 18. Rad1 {[%clk 0:02:25]}  f4 {[%clk 0:01:43]} 19. Na5 {[%clk 0:02:23]}  Qc8 {[%clk 0:01:30]} 20. b4 {[%clk 0:02:21]}  Ne8 {[%clk 0:00:47]} 21. c5 {[%clk 0:02:19]}  Kh8 {[%clk 0:00:45]} 22. Nc4 {[%clk 0:02:13]}  dxc5 {[%clk 0:00:39]} 23. Bxc5 {[%clk 0:02:11]}  Rg8 {[%clk 0:00:39]} 24. Na5 {[%clk 0:02:05]}  g5 {[%clk 0:00:38]} 25. Bc4 {[%clk 0:01:58]}  g4 {[%clk 0:00:34]} 26. Bxe6 {[%clk 0:01:54]}  Qxe6 {[%clk 0:00:35]} 27. Qd7 {[%clk 0:01:54]}  Qg6 {[%clk 0:00:30]} 28. Qxg4 {[%clk 0:01:52]}  Qh6 {[%clk 0:00:25]} 29. Qd7 {[%clk 0:01:41]}  Ng5 {[%clk 0:00:22]} 30. Qxc6 {[%clk 0:01:35]}  Nf6 {[%clk 0:00:22]} 31. Kh1 {[%clk 0:01:33]}  Rac8 {[%clk 0:00:18]} 32. Qa6 {[%clk 0:01:31]}  Qh5 {[%clk 0:00:18]} 33. Nd5 {[%clk 0:01:27]}  Nxd5 {[%clk 0:00:15]} 34. exd5 {[%clk 0:01:23]}  Rgd8 {[%clk 0:00:10]} 35. Nb7 {[%clk 0:01:17]}  Rg8 {[%clk 0:00:09]} 36. Nd6 {[%clk 0:01:16]}  Rcd8 {[%clk 0:00:08]} 37. Nf5 {[%clk 0:01:14]}  Rd7 {[%clk 0:00:06]} 38. d6 {[%clk 0:01:08]}  Bf6 {[%clk 0:00:04]} 39. Ne7 {[%clk 0:01:06]}  Rgd8 {[%clk 0:00:03]} 40. Qe2 {[%clk 0:00:57]}  Qf7 {[%clk 0:00:02]} 41. Nc6 {[%clk 0:00:56]}  Qe6 {[%clk 0:00:02]} 42. Nxd8 {[%clk 0:00:56]}  Rxd8 {[%clk 0:00:03]} 43. Rfe1 {[%clk 0:00:53]}  Nf7 {[%clk 0:00:03]} 44. Qa6 {[%clk 0:00:50]}  Rd7 {[%clk 0:00:02]} 45. Qc6 {[%clk 0:00:50]}  Kg7 {[%clk 0:00:03]} 46. a4 {[%clk 0:00:45]}  Ng5 {[%clk 0:00:03]} 47. b5 {[%clk 0:00:44]}  h5 {[%clk 0:00:03]} 48. Bf2 {[%clk 0:00:39]}  Nf7 {[%clk 0:00:02]} 49. a5 {[%clk 0:00:38]}  h4 {[%clk 0:00:02]} 50. h3 {[%clk 0:00:38]}  Nxd6 {[%clk 0:00:02]} 51. b6 {[%clk 0:00:37]}  axb6 {[%clk 0:00:01]} 52. axb6 {[%clk 0:00:38]}  Be7 {[%clk 0:00:02]} 53. b7 {[%clk 0:00:36]}  Rxb7 {[%clk 0:00:02]} 54. Rxd6 {[%clk 0:00:35]}  Qxd6 {[%clk 0:00:01]} 55. Qxb7 {[%clk 0:00:35]}  Qd2 {[%clk 0:00:01]} 56. Qxe7+ {[%clk 0:00:35]}  Kg6 {[%clk 0:00:02]} 57. Qe6+ {[%clk 0:00:35]} 1-0


[Site "https://www.chess.com"]